fUSD/lending_fUSD_20240117
["ID","MTS","AMOUNT","RATE_DAILY","PERIOD"]
[311908515,1705492252552,-500.0,0.00027123,2]
[311908516,1705492252562,-1328.59,0.00027123,2]
[311908517,1705492252573,-500.0,0.00027123,2]
[311908518,1705492252584,-2294.73,0.00027123,2]
[311908519,1705492252595,-5138.97,0.00027123,2]
[311908520,1705492252606,-420.17230762,0.00027123,2]
[311908521,1705492252618,-980.6,0.00027123,2]
[311908522,1705492252629,-871.65,0.00027123,2]
[311908523,1705492252640,-246.93,0.0002713,2]
[311908524,1705492252652,-6682.04473721,0.00027175,2]
[311908525,1705492252664,-1000.0,0.00027224,2]
[311908526,1705492252673,-250.0,0.00027299,2]
[311908527,1705492252683,-2000.0,0.00027299,3]
[311908528,1705492252693,-256.83,0.000273,2]
[311908529,1705492252702,-1121.84718844,0.00027329,2]
[311908530,1705492252712,-781.5420637,0.00027388,2]
[311908531,1705492252723,-216.48,0.00027396,2]
[311908532,1705492252733,-914.58,0.00027397,2]
[311908533,1705492252743,-214.05518237,0.00027397,2]
[311908534,1705492252754,-1328.59,0.00027397,2]
[311908535,1705492252764,-500.0,0.00027397,2]
[311908536,1705492252774,-2294.73,0.00027397,2]
[311908537,1705492252784,-155.0,0.00027397,2]
[311908538,1705492252793,-5138.97,0.00027397,2]
[311908539,1705492252802,-980.6,0.00027397,2]
[311908540,1705492252812,-871.65,0.00027397,2]
[311908541,1705492252822,-14076.19,0.00027397,2]
[311908542,1705492252832,-3090.18,0.00027397,10]
[311908543,1705492252843,-4367.95,0.00027397,10]
[311908544,1705492252853,-3639.96,0.00027397,10]
[311908545,1705492252862,-3033.3,0.00027397,10]
[311908546,1705492252871,-2527.75,0.00027397,10]
[311908547,1705492252881,-5694.71996943,0.000274,2]
[311908548,1705492252891,-251.17628709,0.000274,2]
[311908549,1705492252901,-7527.0,0.000274,2]
[311908550,1705492252911,-1114.35,0.000274,2]
[311908551,1705492252921,-1114.35,0.000274,2]
[311908552,1705492252930,-1114.35,0.000274,2]
[311908553,1705492252941,-1114.35,0.000274,2]
[311908554,1705492252951,-298.82,0.0002742,2]
[311908555,1705492252961,-256.83,0.00027437,2]
[311908556,1705492252970,-14076.19,0.00027556,2]
[311908557,1705492252980,-256.83,0.00027574,2]
[311908558,1705492252990,-509.98,0.00027668,2]
[311908559,1705492253000,-337.09,0.0002767,2]
[311908560,1705492253010,-337.09,0.0002767,2]
[311908561,1705492253020,-337.09,0.0002767,2]
[311908562,1705492253031,-337.09,0.0002767,2]
[311908563,1705492253041,-337.09,0.0002767,2]
[311908564,1705492253051,-1055.81,0.0002767,2]
[311908565,1705492253062,-914.58,0.00027671,2]
[311908566,1705492253072,-1328.59,0.00027671,2]
[311908567,1705492253085,-500.0,0.00027671,2]
[311908568,1705492253096,-2294.73,0.00027671,2]
[311908569,1705492253105,-5138.97,0.00027671,2]
[311908570,1705492253115,-980.6,0.00027671,2]
[311908571,1705492253126,-871.65,0.00027671,2]
[311908572,1705492253137,-500.0,0.00027671,2]
[311908573,1705492253147,-262.24964119,0.00027711,2]
[311908574,1705492253160,-14076.19,0.00027714,2]
[311908575,1705492253171,-781.5420637,0.00027766,2]
[311908576,1705492253181,-151.17074475,0.00027807,2]
[311908577,1705492253192,-1121.84718844,0.00027808,2]
[311908578,1705492253202,-14076.19,0.00027872,2]
[311908579,1705492253213,-216.48,0.00027944,2]
[311908580,1705492253223,-914.58,0.00027945,2]
[311908581,1705492253233,-1328.59,0.00027945,2]
[311908582,1705492253243,-232.17152919,0.00027945,2]
[311908583,1705492253252,-2294.73,0.00027945,2]
[311908584,1705492253263,-5138.97,0.00027945,2]
[311908585,1705492253273,-980.6,0.00027945,2]
[311908586,1705492253283,-871.65,0.00027945,2]
[311908587,1705492253292,-415.09063249,0.00028,2]
[311908588,1705492253302,-203.0152013,0.00028,2]
[311908589,1705492253311,-690.29922565,0.00028,2]
[311908590,1705492253320,-22777.42537705,0.00028,2]
[311908591,1705492253329,-455.54850754,0.00028,2]
[311908592,1705492253339,-3000.0,0.00028,2]
[311908593,1705492253348,-3000.0,0.00028,2]
[311908594,1705492253358,-200.20414027,0.00028,2]
[311908595,1705492253368,-176.27,0.00028,2]
[311908596,1705492253377,-3000.0,0.0002801,2]
[311908597,1705492253386,-3000.0,0.0002802,2]
[311908598,1705492253397,-3000.0,0.0002803,2]
[311908599,1705492253406,-14076.19,0.0002803,2]
[311908600,1705492253416,-3000.0,0.0002804,2]
[311908601,1705492253425,-3000.0,0.0002805,2]
[311908602,1705492253434,-3000.0,0.0002806,2]
[311908603,1705492253443,-3000.0,0.0002807,2]
[311908604,1705492253453,-3000.0,0.0002808,2]
[311908605,1705492253462,-3000.0,0.0002809,2]
[311908606,1705492253471,-3000.0,0.000281,2]
[311908607,1705492253480,-246.93,0.00028108,2]
[311908608,1705492253490,-3000.0,0.0002811,2]
[311908609,1705492253499,-3000.0,0.0002812,2]
[311908610,1705492253508,-3000.0,0.0002813,2]
[311908611,1705492253517,-3000.0,0.0002814,2]
[311908612,1705492253526,-781.5420637,0.00028144,2]
[311908613,1705492253536,-3000.0,0.0002815,2]
[311908614,1705492253545,-3000.0,0.0002816,2]
[311908615,1705492253554,-3000.0,0.0002817,2]
[311908616,1705492253563,-3000.0,0.0002818,2]
[311908617,1705492253572,-14076.19,0.00028189,2]
[311908618,1705492253582,-3000.0,0.0002819,2]
[311908619,1705492253591,-3000.0,0.000282,2]
[311908620,1705492253601,-155.0,0.00028201,2]
[311908621,1705492253610,-3000.0,0.0002821,2]
[311908622,1705492253622,-725.56,0.00028219,2]
[311908623,1705492253631,-914.71100736,0.00028219,2]
[311908624,1705492253640,-1328.71449973,0.00028219,2]
[311908625,1705492253650,-2294.91721058,0.00028219,2]
[311908626,1705492253658,-5139.15725061,0.00028219,2]
[311908627,1705492253667,-980.6894774,0.00028219,2]
[311908628,1705492253677,-871.7082848,0.00028219,2]
[311908629,1705492253687,-3000.0,0.0002822,2]
[311908630,1705492253697,-5786.643303,0.0002823,2]
[311908631,1705492253707,-1000.0,0.00028234,7]
[311908632,1705492253716,-1000.0,0.00028234,7]
[311908633,1705492253726,-1000.0,0.00028234,7]
[311908634,1705492253735,-1000.0,0.00028234,7]
[311908635,1705492253745,-1000.0,0.00028234,7]
[311908636,1705492253754,-1000.0,0.00028234,7]
[311908637,1705492253763,-1000.0,0.00028234,7]
[311908638,1705492253773,-1000.0,0.00028234,7]
[311908639,1705492253783,-1000.0,0.00028234,7]
[311908640,1705492253792,-3338.12010372,0.00028234,4]
[311908641,1705492253802,-1000.0,0.00028234,7]
[311908642,1705492253811,-356.63059097,0.00028234,3]
[311908643,1705492253820,-1000.0,0.00028234,7]
[311908644,1705492253830,-1000.0,0.00028234,7]
[311908645,1705492253839,-524.64532137,0.00028234,3]
[311908646,1705492253848,-1000.0,0.00028234,7]
[311908647,1705492253857,-2456.27346732,0.00028234,4]
[311908648,1705492253868,-10065.11607007,0.00028234,5]
[311908649,1705492253878,-2424.40805904,0.00028234,4]
[311908650,1705492253887,-431.54723849,0.00028234,4]
[311908651,1705492253897,-2612.25273946,0.00028234,4]
[311908652,1705492253906,-2474.17518628,0.00028234,4]
[311908653,1705492253916,-442.07833379,0.00028234,4]
[311908654,1705492253925,-837.15715418,0.00028234,5]
[311908655,1705492253935,-6682.04473721,0.00028269,2]
[311908656,1705492253944,-14076.19,0.00028347,2]
[311908657,1705492253953,-1000.0,0.000284,2]
[311908658,1705492253963,-343.0,0.000284,2]
[311908659,1705492253973,-201.0,0.00028407,2]
[311908660,1705492253982,-216.48,0.00028492,2]
[311908661,1705492253992,-14076.19,0.00028505,2]
[311908662,1705492254001,-781.5420637,0.00028522,2]
[311908663,1705492254011,-176.27,0.00028548,2]
[311908664,1705492254020,-14076.19,0.00028664,2]
[311908665,1705492254030,-155.0,0.00028767,2]
[311908666,1705492254040,-7527.42430505,0.000288,2]
[311908667,1705492254049,-750.0,0.000288,2]
[311908668,1705492254059,-14076.19,0.00028822,2]
[311908669,1705492254068,-781.5420637,0.000289,2]
[311908670,1705492254080,-151.1844789,0.00028989,2]
[311908671,1705492254089,-1350.0,0.00029,3]
[311908672,1705492254099,-5345.835905,0.00029,2]
[311908673,1705492254109,-216.48,0.0002904,2]
[311908674,1705492254121,-246.93,0.00029087,2]
[311908675,1705492254129,-336.51772468,0.00029096,2]
[311908676,1705492254139,-1055.81,0.00029362,2]
[311908677,1705492254148,-6682.04473721,0.00029362,2]
[311908678,1705492254159,-1083.92264093,0.000294,2]
[311908679,1705492254168,-5409.70557293,0.00029448,7]
[311908680,1705492254178,-297.53380651,0.00029448,7]
[311908681,1705492254187,-209.136172,0.00029462,3]
[311908682,1705492254197,-800.0,0.00029462,5]
[311908683,1705492254206,-155.0,0.000295,3]
[311908684,1705492254216,-216.48,0.00029587,2]
[311908685,1705492254226,-432.654318,0.00029599,2]
[311908686,1705492254236,-5825.73662419,0.0002961,7]
[311908687,1705492254449,-298.82,0.00029684,2]
[311908688,1705492254501,-54842.36318676,0.00029693,7]
[311908689,1705492254512,-1000.0,0.00029699,2]
[311908690,1705492254521,-175.46672634,0.000298,2]
[311908691,1705492254530,-6963.41988508,0.00029867,7]
[311908692,1705492254539,-6487.96089585,0.00029867,7]
[311908693,1705492254548,-150.0,0.00029989,2]
[311908694,1705492254557,-1055.81,0.00029998,2]
[311908695,1705492254567,-1055.81,0.00029998,2]
[311908696,1705492254576,-1055.81,0.00029998,2]
[311908697,1705492254586,-1055.81,0.00029998,2]
[311908698,1705492254595,-1055.81,0.00029998,2]
[311908699,1705492254605,-1055.81,0.00029999,2]
[311908700,1705492254615,-1055.81,0.00029999,2]
[311908701,1705492254624,-1055.81,0.00029999,2]
[311908702,1705492254633,-100000.0,0.0003,2]
[311908703,1705492254643,-770.58135396,0.0003,2]
[311908704,1705492254653,-546.50986276,0.0003,4]
[311908705,1705492254663,-13588.23507973,0.0003,4]
[311908706,1705492254672,-155.0,0.0003,2]
[311908707,1705492254682,-582.41012676,0.0003,2]
[311908708,1705492254691,-691.6211631,0.0003,2]
[311908709,1705492254700,-2500.0,0.0003,2]
[311908710,1705492254710,-38098.76820008,0.0003,4]
[311908711,1705492254719,-16442.78433139,0.0003,2]
[311908712,1705492254729,-9635.5323301,0.0003,2]
[311908713,1705492254738,-763.42785941,0.0003,4]
[311908714,1705492254747,-3707.67418971,0.0003,4]
[311908715,1705492254757,-731107.0,0.0003,2]
[311908716,1705492254766,-153.43,0.0003,2]
[311908717,1705492254776,-153.43,0.0003,2]
[311908718,1705492254785,-3000.0,0.0003,2]
[311908719,1705492254795,-150.0,0.0003,2]
[311908720,1705492254804,-1968.91329711,0.0003,2]
[311908721,1705492254814,-1968.91329711,0.0003,2]
[311908722,1705492254823,-927.45525257,0.00030051,2]
[311908723,1705492254832,-246.93,0.00030065,2]
[311908724,1705492254841,-1000.0,0.000301,2]
[311908725,1705492254850,-216.48,0.00030135,2]
[311908726,1705492254860,-153.84,0.00030137,2]
[311908727,1705492254871,-2400.0,0.00030137,7]
[311908728,1705492254880,-155.0,0.00030137,2]
[311908729,1705492254890,-1563.52508396,0.00030187,2]
[311908730,1705492254900,-14459.26013883,0.00030188,2]
[311908731,1705492254910,-1055.81,0.00030299,2]
[311908732,1705492254919,-17426.0,0.000303,3]
[311908733,1705492254929,-152.02520972,0.000304,2]
[311908734,1705492254938,-530.71597084,0.0003042,7]
[311908735,1705492254948,-6682.04473721,0.00030456,2]
[311908736,1705492254958,-530.71597084,0.00030461,7]
[311908737,1705492254967,-530.71597084,0.00030483,7]
[311908738,1705492254977,-530.71597084,0.00030485,7]
[311908739,1705492254987,-155.39433118,0.00030523,7]
[311908740,1705492254996,-166.66666667,0.00030582,7]
[311908741,1705492255006,-530.71597084,0.00030598,7]
[311908742,1705492255015,-17426.0,0.000306,5]
[311908743,1705492255025,-151.17074475,0.00030672,2]
[311908744,1705492255034,-216.48,0.00030683,2]
[311908745,1705492255043,-530.71597084,0.00030726,7]
[311908746,1705492255052,-3759.52819228,0.0003076,4]
[311908747,1705492255062,-3759.52819228,0.0003076,4]
[311908748,1705492255072,-3759.52819228,0.0003076,4]
[311908749,1705492255085,-3759.52819228,0.0003076,4]
[311908750,1705492255094,-530.71597084,0.00030777,7]
[311908751,1705492255105,-530.71597084,0.00030841,7]
[311908752,1705492255114,-165.01083838,0.00030845,7]
[311908753,1705492255125,-152.0,0.00030982,3]
[311908754,1705492255135,-530.71597084,0.00030983,7]
[311908755,1705492255144,-150.0,0.00030989,2]
[311908756,1705492255153,-100000.0,0.00031,2]
[311908757,1705492255163,-1400.0,0.00031,3]
[311908758,1705492255172,-3000.0,0.00031,2]
[311908759,1705492255182,-500.0,0.00031,2]
[311908760,1705492255191,-500.0,0.00031,2]
[311908761,1705492255200,-500.0,0.00031,2]
[311908762,1705492255209,-500.0,0.00031,2]
[311908763,1705492255218,-500.0,0.00031,2]
[311908764,1705492255227,-500.0,0.00031,2]
[311908765,1705492255236,-500.0,0.00031,2]
[311908766,1705492255246,-500.0,0.00031,2]
[311908767,1705492255255,-500.0,0.00031,2]
[311908768,1705492255265,-500.0,0.00031,2]
[311908769,1705492255274,-500.0,0.00031,2]
[311908770,1705492255283,-500.0,0.00031,2]
[311908771,1705492255293,-500.0,0.00031,2]
[311908772,1705492255302,-500.0,0.00031,2]
[311908773,1705492255311,-500.0,0.00031,2]
[311908774,1705492255320,-500.0,0.00031,2]
[311908775,1705492255329,-500.0,0.00031,2]
[311908776,1705492255340,-500.0,0.00031,2]
[311908777,1705492255349,-500.0,0.00031,2]
[311908778,1705492255359,-500.0,0.00031,2]
[311908779,1705492255368,-500.0,0.00031,2]
[311908780,1705492255380,-500.0,0.00031,2]
[311908781,1705492255389,-500.0,0.00031,2]
[311908782,1705492255398,-500.0,0.00031,2]
[311908783,1705492255407,-500.0,0.00031,2]
[311908784,1705492255417,-500.0,0.00031,2]
[311908785,1705492255426,-500.0,0.00031,2]
[311908786,1705492255435,-500.0,0.00031,2]
[311908787,1705492255444,-500.0,0.00031,2]
[311908788,1705492255453,-500.0,0.00031,2]
[311908789,1705492255463,-500.0,0.00031,2]
[311908790,1705492255473,-500.0,0.00031,2]
[311908791,1705492255482,-500.0,0.00031,2]
[311908792,1705492255491,-500.0,0.00031,2]
[311908793,1705492255501,-500.0,0.00031,2]
[311908794,1705492255510,-500.0,0.00031,2]
[311908795,1705492255519,-500.0,0.00031,2]
[311908796,1705492255529,-500.0,0.00031,2]
[311908797,1705492255539,-500.0,0.00031,2]
[311908798,1705492255550,-500.0,0.00031,2]
[311908799,1705492255559,-500.0,0.00031,2]
[311908800,1705492255568,-500.0,0.00031,2]
[311908801,1705492255578,-500.0,0.00031,2]
[311908802,1705492255587,-500.0,0.00031,2]
[311908803,1705492255597,-500.0,0.00031,2]
[311908804,1705492255606,-500.0,0.00031,2]
[311908805,1705492255617,-500.0,0.00031,2]
[311908806,1705492255627,-500.0,0.00031,2]
[311908807,1705492255637,-500.0,0.00031,2]
[311908808,1705492255646,-500.0,0.00031,2]
[311908809,1705492255655,-500.0,0.00031,2]
[311908810,1705492255665,-500.0,0.00031,2]
[311908811,1705492255674,-500.0,0.00031,2]
[311908812,1705492255683,-500.0,0.00031,2]
[311908813,1705492255693,-500.0,0.00031,2]
[311908814,1705492255702,-500.0,0.00031,2]
[311908815,1705492255712,-500.0,0.00031,2]
[311908816,1705492255721,-500.0,0.00031,2]
[311908817,1705492255731,-500.0,0.00031,2]
[311908818,1705492255740,-500.0,0.00031,2]
[311908819,1705492255749,-500.0,0.00031,2]
[311908820,1705492255759,-500.0,0.00031,2]
[311908821,1705492255768,-500.0,0.00031,2]
[311908822,1705492255777,-500.0,0.00031,2]
[311908823,1705492255787,-500.0,0.00031,2]
[311908824,1705492255797,-500.0,0.00031,2]
[311908825,1705492255806,-500.0,0.00031,2]
[311908826,1705492255815,-500.0,0.00031,2]
[311908827,1705492255825,-500.0,0.00031,2]
[311908828,1705492255834,-500.0,0.00031,2]
[311908829,1705492255843,-500.0,0.00031,2]
[311908830,1705492255853,-500.0,0.00031,2]
[311908831,1705492255863,-500.0,0.00031,2]
[311908832,1705492255873,-500.0,0.00031,2]
[311908833,1705492255883,-500.0,0.00031,2]
[311908834,1705492255893,-500.0,0.00031,2]
[311908835,1705492255903,-500.0,0.00031,2]
[311908836,1705492255913,-322.67,0.00031,2]
[311908837,1705492255922,-500.0,0.00031,2]
[311908838,1705492255931,-500.0,0.00031,2]
[311908839,1705492255941,-500.0,0.00031,2]
[311908840,1705492255951,-500.0,0.00031,2]
[311908841,1705492255960,-500.0,0.00031,2]
[311908842,1705492255970,-500.0,0.00031,2]
[311908843,1705492255980,-530.71597084,0.00031017,7]
[311908844,1705492255989,-246.93,0.00031044,2]
[311908845,1705492255999,-153.84,0.0003105,2]
[311908846,1705492256008,-165.01083838,0.00031125,7]
[311908847,1705492256018,-150.0,0.00031139,2]
[311908848,1705492256027,-530.71597084,0.00031164,7]
[311908849,1705492256037,-216.48,0.00031231,2]
[311908850,1705492256046,-151.0,0.00031232,30]
[311908851,1705492256056,-153.43,0.000313,2]
[311908852,1705492256067,-153.43,0.000313,2]
[311908853,1705492256078,-153.43,0.000313,2]
[311908854,1705492256087,-153.43,0.000313,2]
[311908855,1705492256096,-209.0,0.000314,2]
[311908856,1705492256106,-530.71597084,0.00031412,7]
[311908857,1705492256116,-150.0,0.00031414,2]
[311908858,1705492256125,-150.0,0.00031472,2]
[311908859,1705492256134,-150.0,0.00031504,2]
[311908860,1705492256143,-403.6,0.00031507,2]
[311908861,1705492256153,-155.0,0.00031507,2]
[311908862,1705492256163,-6682.04473721,0.0003155,3]
[311908863,1705492256173,-152.80025905,0.00031566,2]
[311908864,1705492256182,-201.0,0.00031566,7]
[311908865,1705492256192,-166.66666667,0.00031567,7]
[311908866,1705492256202,-150.66287439,0.0003168,2]
[311908867,1705492256211,-800.0,0.00031743,5]
[311908868,1705492256222,-530.71597084,0.00031775,7]
[311908869,1705492256231,-216.48,0.00031779,2]
[311908870,1705492256241,-1055.81,0.00031799,2]
[311908871,1705492256250,-301787.084456,0.000318,3]
[311908872,1705492256259,-150.0,0.00031824,2]
[311908873,1705492256268,-150.0,0.00031827,2]
[311908874,1705492256278,-530.71597084,0.00031828,7]
[311908875,1705492256287,-166.66666667,0.00031838,7]
[311908876,1705492256297,-151.0,0.0003187,7]
[311908877,1705492256306,-150.0,0.00031874,2]
[311908878,1705492256315,-150.0,0.00031882,2]
[311908879,1705492256324,-150.0,0.00031895,2]
[311908880,1705492256334,-530.71597084,0.00031929,7]
[311908881,1705492256344,-150.0,0.00031935,2]
[311908882,1705492256353,-298.82,0.00031948,2]
[311908883,1705492256363,-153.84,0.00031963,2]
[311908884,1705492256373,-1000.0,0.00031969,7]
[311908885,1705492256382,-1000.0,0.00031969,7]
[311908886,1705492256391,-1000.0,0.00031969,7]
[311908887,1705492256401,-150.0,0.00031985,2]
[311908888,1705492256410,-150.0,0.00031989,2]
[311908889,1705492256419,-150.0,0.00031989,2]
[311908890,1705492256428,-200.0,0.0003199,7]
[311908891,1705492256437,-200.0,0.0003199,7]
[311908892,1705492256447,-3295.67153385,0.00031999,2]
[311908893,1705492256456,-1055.81,0.00031999,2]
[311908894,1705492256466,-1055.81,0.00031999,2]
[311908895,1705492256475,-1055.81,0.00031999,2]
[311908896,1705492256484,-1055.81,0.00031999,2]
[311908897,1705492256493,-1055.81,0.00031999,2]
[311908898,1705492256503,-1055.98,0.00031999,2]
[311908899,1705492256512,-300.0,0.00031999,2]
[311908900,1705492256522,-500.0,0.00031999,4]
[311908901,1705492256531,-191.94804406,0.00031999,4]
[311908902,1705492256540,-500.0,0.00031999,4]
[311908903,1705492256550,-500.0,0.00031999,4]
[311908904,1705492256559,-598.23638149,0.00031999,4]
[311908905,1705492256569,-500.0,0.00031999,4]
[311908906,1705492256578,-500.0,0.00031999,4]
[311908907,1705492256588,-500.0,0.00031999,4]
[311908908,1705492256597,-500.0,0.00031999,4]
[311908909,1705492256607,-500.0,0.00031999,4]
[311908910,1705492256617,-500.0,0.00031999,4]
[311908911,1705492256626,-500.0,0.00031999,4]
[311908912,1705492256635,-500.0,0.00031999,4]
[311908913,1705492256645,-500.0,0.00031999,4]
[311908914,1705492256654,-100000.0,0.00032,3]
[311908915,1705492256663,-655576.18238374,0.00032,3]
[311908916,1705492256673,-2907.38442604,0.00032,30]
[311908917,1705492256682,-13058.55674056,0.00032,4]
[311908918,1705492256691,-600.0,0.00032,33]
[311908919,1705492256700,-2000.0,0.00032,2]
[311908920,1705492256710,-150.0,0.00032,2]
[311908921,1705492256719,-150.0,0.00032,5]
[311908922,1705492256729,-473.2219944,0.00032,2]
[311908923,1705492256738,-507.165547,0.00032,3]
[311908924,1705492256747,-1131.3065446,0.00032,2]
[311908925,1705492256757,-3699.0930648,0.00032,2]
[311908926,1705492256766,-177.576617,0.00032,2]
[311908927,1705492256775,-10000.0,0.00032,15]
[311908928,1705492256835,-1000.0,0.00032,2]
[311908929,1705492256845,-10000.0,0.00032,15]
[311908930,1705492256855,-28050.3660396,0.00032,2]
[311908931,1705492256865,-300.0,0.00032,5]
[311908932,1705492256874,-18318.5529543,0.00032,2]
[311908933,1705492256882,-150.0,0.00032,2]
[311908934,1705492256891,-553.0894115,0.00032,2]
[311908935,1705492256900,-23177.3071146,0.00032,2]
[311908936,1705492256911,-2243.913,0.00032,2]
[311908937,1705492256920,-727.5459,0.00032,2]
[311908938,1705492256929,-530.71597084,0.00032008,7]
[311908939,1705492256939,-246.93,0.00032022,2]
[311908940,1705492256949,-530.71597084,0.00032096,7]
[311908941,1705492256958,-530.71597084,0.00032129,7]
[311908942,1705492256967,-1726.97879665,0.00032142,2]
[311908943,1705492256977,-5000.0,0.00032216,4]
[311908944,1705492256986,-211.0,0.0003227,2]
[311908945,1705492256996,-236.0,0.0003227,2]
[311908946,1705492257005,-203.0,0.0003227,2]
[311908947,1705492257014,-204.0,0.0003227,2]
[311908948,1705492257023,-207.0,0.0003227,2]
[311908949,1705492257033,-190.68196431,0.00032299,7]
[311908950,1705492257042,-216.48,0.00032327,2]
[311908951,1705492257051,-500.0,0.00032432,7]
[311908952,1705492257060,-209.0,0.000325,2]
[311908953,1705492257070,-151.0,0.0003252,4]
[311908954,1705492257081,-6843.67382476,0.00032546,2]
[311908955,1705492257092,-161.14339068,0.00032577,7]
[311908956,1705492257101,-530.71597084,0.00032622,7]
[311908957,1705492257110,-6682.04473721,0.00032644,4]
[311908958,1705492257121,-150.24240914,0.0003268,3]
[311908959,1705492257130,-153.43,0.000327,2]
[311908960,1705492257139,-153.43,0.000327,2]
[311908961,1705492257149,-153.43,0.000327,2]
[311908962,1705492257159,-153.43,0.000327,2]
[311908963,1705492257169,-10000.0,0.000328,4]
[311908964,1705492257178,-221.0,0.000328,21]
[311908965,1705492257187,-2001.06,0.000328,2]
[311908966,1705492257196,-301.06,0.000328,2]
[311908967,1705492257205,-1000.0,0.00032811,7]
[311908968,1705492257214,-1000.0,0.00032811,7]
[311908969,1705492257223,-211.0,0.0003285,2]
[311908970,1705492257232,-236.0,0.0003285,2]
[311908971,1705492257242,-165.01083838,0.00032857,7]
[311908972,1705492257252,-156.01597444,0.00032865,4]
[311908973,1705492257261,-369.25528004,0.00032874,4]
[311908974,1705492257270,-309.58159212,0.00032874,4]
[311908975,1705492257279,-216.48,0.00032875,2]
[311908976,1705492257288,-50780.93812358,0.00032876,3]
[311908977,1705492257297,-250.60558109,0.00032876,3]
[311908978,1705492257306,-351.00987541,0.00032876,7]
[311908979,1705492257315,-1225.99,0.00032876,7]
[311908980,1705492257324,-153.84,0.00032877,2]
[311908981,1705492257333,-500.0,0.00032877,6]
[311908982,1705492257342,-500.0,0.00032877,6]
[311908983,1705492257351,-500.0,0.00032877,6]
[311908984,1705492257360,-500.0,0.00032877,6]
[311908985,1705492257371,-510.29329296,0.00032877,6]
[311908986,1705492257383,-150.1,0.00032877,2]
[311908987,1705492257392,-1000.0,0.00032877,30]
[311908988,1705492257401,-1000.0,0.00032877,30]
[311908989,1705492257410,-1000.0,0.00032877,30]
[311908990,1705492257418,-1000.0,0.00032877,30]
[311908991,1705492257427,-1000.0,0.00032877,30]
[311908992,1705492257435,-1000.0,0.00032877,30]
[311908993,1705492257444,-1000.0,0.00032877,30]
[311908994,1705492257454,-1000.0,0.00032877,30]
[311908995,1705492257463,-1000.0,0.00032877,30]
[311908996,1705492257472,-1000.0,0.00032877,30]
[311908997,1705492257481,-1000.0,0.00032877,30]
[311908998,1705492257490,-1000.0,0.00032877,30]
[311908999,1705492257499,-1000.0,0.00032877,30]
[311909000,1705492257509,-1000.0,0.00032877,30]
[311909001,1705492257519,-1000.0,0.00032877,30]
[311909002,1705492257532,-1000.0,0.00032877,30]
[311909003,1705492257542,-1000.0,0.00032877,30]
[311909004,1705492257551,-1000.0,0.00032877,30]
[311909005,1705492257560,-1000.0,0.00032877,30]
[311909006,1705492257569,-1000.0,0.00032877,30]
[311909007,1705492257578,-1000.0,0.00032877,30]
[311909008,1705492257587,-500.0,0.00032877,2]
[311909009,1705492257596,-1000.0,0.00032877,30]
[311909010,1705492257605,-1000.0,0.00032877,30]
[311909011,1705492257616,-1000.0,0.00032877,30]
[311909012,1705492257625,-1000.0,0.00032877,30]
[311909013,1705492257634,-1000.0,0.00032877,30]
[311909014,1705492257643,-1000.0,0.00032877,30]